bitfinex/quotes_SOLUSD_20241209
["timestamp","ask_amount","ask_price","bid_price","bid_amount"]
[1733726982519,13.12112723,231.74,231.51,9.06719555]
[1733726982696,0.25098,231.69,231.51,9.06719555]
[1733726983303,0.12549,231.69,231.51,9.06719555]
[1733726983697,0.12549,231.68,231.51,9.06719555]
[1733726983896,24.027864,231.64,231.51,9.06719555]
[1733726984292,24.027864,231.64,231.52,6.0754]
[1733726984493,0.12549,231.64,231.53,0.64764088]
[1733726984995,0.12549,231.64,231.54,1.665]
[1733726985208,0.12549,231.64,231.55,0.64762107]
[1733726986010,5.06307181,231.72,231.55,0.64762107]
[1733726986211,0.12549,231.71,231.55,0.64762107]
[1733726986696,20.0,231.69,231.55,0.64762107]
[1733726986895,0.12549,231.68,231.55,0.64762107]
[1733726987499,20.0,231.65,231.55,0.64762107]
[1733726988030,23.902374,231.68,231.58,1.6434]
[1733726988348,23.902374,231.68,231.59,0.64749327]
[1733726988504,0.12549,231.74,231.59,0.64749327]
[1733726988701,0.25098,231.74,231.59,0.64749327]
[1733726988935,0.12549,231.72,231.59,0.64749327]
[1733726989146,0.12549,231.73,231.59,0.64749327]
[1733726989312,0.12549,231.73,231.58,1.6434]
[1733726989935,23.902374,231.69,231.58,1.6434]
[1733726990231,10.0,231.66,231.58,1.6434]
[1733726990440,10.0,231.66,231.58,2.29092111]
[1733726996532,23.776884,231.65,231.58,1.6434]
[1733726997231,0.12549,231.64,231.58,1.6434]
[1733726998553,23.776884,231.65,231.58,2.2910204]
[1733726998757,23.776884,231.65,231.58,1.6434]
[1733727009075,10.0,231.66,231.59,0.64757778]
[1733727013083,10.0,231.66,231.6,8.59499344]
[1733727013312,10.0,231.66,231.61,0.6474213]
[1733727013867,10.0,231.66,231.62,1.5852]
[1733727018122,10.0,231.66,231.63,0.64742177]
[1733727018276,43.902374,231.74,231.62,1.5852]
[1733727018597,0.12549,231.72,231.62,1.5852]
[1733727020588,0.12549,231.72,231.57,8.0199]
[1733727021107,23.902374,231.71,231.57,8.0199]
[1733727021423,0.12549,231.66,231.57,8.0199]
[1733727021976,0.12549,231.73,231.57,8.0199]
[1733727021977,23.902374,231.63,231.57,8.0199]
[1733727022281,23.776884,231.59,231.57,1.5009]
[1733727022821,0.12549,231.58,231.52,6.2529]
[1733727022978,20.0,231.67,231.52,6.2529]
[1733727023307,23.902374,231.61,231.52,6.2529]
[1733727023507,20.0,231.58,231.52,6.2529]
[1733727024089,20.0,231.58,231.51,1.6475]
[1733727024090,23.902374,231.57,231.51,1.6475]
[1733727024822,21.70682602,231.61,231.51,1.6475]
[1733727025105,20.0,231.57,231.51,1.6475]
[1733727035415,20.0,231.62,231.51,1.6475]
[1733727036115,0.25098,231.61,231.51,1.6475]
[1733727036513,0.12549,231.6,231.51,1.6475]
[1733727036697,23.776884,231.57,231.51,1.6475]
[1733727036894,20.0,231.54,231.51,1.6475]
[1733727037902,20.0,231.62,231.51,1.6475]
[1733727038828,0.25098,231.61,231.51,1.6475]
[1733727039505,20.0,231.58,231.51,1.6475]
[1733727042002,20.0,231.54,231.51,1.6475]
[1733727047254,20.0,231.54,231.46,6.1341]
[1733727060024,20.0,231.5,231.46,6.1341]
[1733727060234,20.0,231.5,231.45,1.5837]
[1733727061868,4.90971276,231.57,231.45,1.5837]
[1733727062068,3.32676453,231.61,231.45,1.5837]
[1733727062069,23.776884,231.6,231.45,1.5837]
[1733727062287,1.73127453,231.61,231.45,1.5837]
[1733727062448,14.68216443,231.63,231.45,1.5837]
[1733727062651,0.25098,231.62,231.45,1.5837]
[1733727063475,24.027864,231.58,231.45,1.5837]
[1733727063777,20.0,231.55,231.45,1.5837]
[1733727065586,20.0,231.51,231.45,1.5837]
[1733727067289,4.19592374,231.61,231.45,1.5837]
[1733727067456,20.0,231.59,231.45,1.5837]
[1733727067660,0.12549,231.57,231.45,1.5837]
[1733727068364,0.12549,231.59,231.45,1.5837]
[1733727069092,20.0,231.57,231.45,1.5837]
[1733727069749,20.0,231.53,231.45,1.5837]
[1733727070586,0.12549,231.56,231.45,1.5837]
[1733727070900,23.902374,231.52,231.45,1.5837]
[1733727071388,20.0,231.53,231.45,1.5837]
[1733727071680,20.0,231.54,231.45,1.5837]
[1733727074564,20.0,231.5,231.45,1.5837]
[1733727074966,23.902374,231.49,231.45,1.5837]
[1733727075482,20.0,231.46,231.42,4.321]
[1733727078276,23.902374,231.54,231.42,4.321]
[1733727078475,0.12549,231.54,231.42,4.321]
[1733727079802,24.027864,231.56,231.42,4.321]
[1733727079982,23.776884,231.52,231.42,4.321]
[1733727080185,24.027864,231.56,231.42,4.321]
[1733727080665,20.0,231.53,231.42,4.321]
[1733727082472,20.0,231.53,231.43,5.8545]
[1733727083283,1.86493383,231.59,231.43,5.8545]
[1733727083284,20.0,231.49,231.43,5.8545]
[1733727085399,23.776884,231.48,231.43,5.8545]
[1733727088026,20.0,231.5,231.43,5.8545]
[1733727089292,20.0,231.46,231.43,1.5335]
[1733727089491,20.0,231.46,231.41,6.6088]
[1733727089689,20.0,231.46,231.38,1.5256]
[1733727093134,20.0,231.42,231.38,1.5256]
[1733727093311,23.902374,231.45,231.38,1.5256]
[1733727093493,20.0,231.42,231.38,1.5256]
[1733727095249,23.902374,231.41,231.33,1.5766]
[1733727095426,20.0,231.38,231.33,1.5766]
[1733727097296,23.902374,231.44,231.33,1.5766]
[1733727097501,20.0,231.41,231.33,1.5766]
[1733727098105,20.0,231.42,231.33,1.5766]
[1733727099628,20.0,231.38,231.33,1.5766]
[1733727109335,1.75637635,231.46,231.33,1.5766]
[1733727109336,23.902374,231.45,231.33,1.5766]
[1733727109702,0.12549,231.44,231.33,1.5766]
[1733727110631,20.0,231.42,231.33,1.5766]
[1733727112104,20.0,231.38,231.33,1.5766]
[1733727114013,23.902374,231.37,231.33,1.5766]
[1733727114208,20.0,231.34,231.33,1.5766]
[1733727118848,20.0,231.34,231.29,6.0211]
[1733727119615,20.0,231.34,231.26,1.6257]
[1733727119616,23.902374,231.33,231.26,1.6257]
[1733727120529,20.0,231.34,231.26,1.6257]
[1733727120727,1.69647878,231.4,231.26,1.6257]
[1733727120949,20.0,231.36,231.26,1.6257]
[1733727122939,23.902374,231.35,231.26,1.6257]
[1733727123258,20.0,231.32,231.26,1.6257]
[1733727125459,23.902374,231.31,231.26,1.6257]
[1733727127042,20.0,231.28,231.26,1.6257]
[1733727127463,23.902374,231.27,231.16,7.9141]
[1733727127836,20.0,231.2,231.16,7.9141]
[1733727128670,20.0,231.2,231.16,1.5268]
[1733727129041,23.776884,231.19,231.11,6.4338]
[1733727130860,20.0,231.24,231.11,6.4338]
[1733727131245,20.0,231.24,231.12,0.64884797]
[1733727131756,20.0,231.28,231.11,6.4338]
[1733727132267,0.25098,231.27,231.11,6.4338]
[1733727132457,0.12549,231.26,231.11,6.4338]
[1733727133340,20.0,231.24,231.11,6.4338]
[1733727133559,20.0,231.2,231.11,6.4338]
[1733727135156,23.902374,231.19,231.11,6.4338]
[1733727135468,20.0,231.16,231.11,6.4338]
[1733727136552,20.0,231.16,231.1,1.543]
[1733727136553,23.902374,231.15,231.1,1.543]
[1733727136861,20.0,231.12,231.1,1.543]
[1733727137254,20.0,231.12,231.05,7.6677]
[1733727138575,3.15734124,231.22,231.05,7.6677]
[1733727138750,20.0,231.2,231.05,7.6677]
[1733727138958,0.25098,231.19,231.05,7.6677]
[1733727139377,11.47,231.29,231.06,9.24402828]
[1733727139679,16.53307181,231.29,231.08,8.59499344]
[1733727140177,0.12549,231.27,231.08,8.59499344]
[1733727140367,16.53307181,231.29,231.08,8.59499344]
[1733727140570,20.0,231.26,231.08,8.59499344]
[1733727140753,0.12549,231.25,231.08,8.59499344]
[1733727141079,20.0,231.26,231.09,10.75344026]
[1733727141287,5.06307181,231.29,231.11,13.48349304]
[1733727141586,5.06307181,231.29,231.13,1.5095]
[1733727142159,4.97626017,231.33,231.13,1.5095]
[1733727142389,9.19592374,231.32,231.13,1.5095]
[1733727142690,0.12549,231.27,231.13,1.5095]
[1733727143452,24.027864,231.27,231.13,1.5095]
[1733727143662,23.902374,231.23,231.13,1.5095]
[1733727143873,20.0,231.2,231.13,1.5095]
[1733727148810,20.0,231.16,231.13,1.5095]
[1733727149805,20.0,231.16,231.06,1.6385]
[1733727149806,23.902374,231.15,231.06,1.6385]
[1733727151800,20.0,231.12,231.06,1.6385]
[1733727153120,0.12549,231.11,231.06,1.6385]
[1733727155194,20.0,231.12,231.06,1.6385]
[1733727160310,23.902374,231.11,231.06,1.6385]
[1733727160510,20.0,231.08,231.06,1.6385]
[1733727164196,0.12549,231.11,231.06,1.6385]
[1733727173837,23.902374,231.13,231.06,1.6385]
[1733727174132,0.12549,231.09,231.06,1.6385]
[1733727174934,0.12549,231.1,230.95,8.0959]
[1733727175131,0.12549,231.1,230.97,8.63636141]
[1733727175331,0.12549,231.1,230.98,1.6294]
[1733727175643,0.12549,231.1,230.98,10.26576141]
[1733727177856,0.12549,231.1,230.99,8.63636141]
[1733727180548,20.0,231.11,231.01,1.649]
[1733727182946,0.12549,231.1,231.01,1.649]
[1733727184920,0.25098,231.1,231.01,1.649]
[1733727185143,20.0,231.07,231.01,1.649]
[1733727185351,6.76376868,231.15,231.13,136.3]
[1733727185352,1.76376868,231.15,231.13,136.3]
[1733727185654,0.25098,231.24,231.12,1.6482]
[1733727186438,5.25098,231.24,231.12,1.6482]
[1733727186632,23.776884,231.2,231.12,1.6482]
[1733727186821,23.776884,231.16,231.12,1.6482]
[1733727187440,0.12549,231.15,231.12,1.6482]
[1733727188241,23.776884,231.16,231.06,7.6469]
[1733727188242,23.902374,231.12,231.06,7.6469]
[1733727188954,0.12549,231.11,231.06,7.6469]
[1733727189142,20.0,231.09,231.06,7.6469]
[1733727190135,23.902374,231.12,231.06,7.6469]
[1733727190136,0.12549,231.12,231.06,7.6469]
[1733727198058,20.0,231.15,231.06,7.6469]
[1733727198059,20.0,231.11,231.06,7.6469]
[1733727198374,0.12549,231.09,231.06,7.6469]
[1733727199086,0.12549,231.1,231.06,7.6469]
[1733727199765,0.12549,231.11,231.06,7.6469]
[1733727202267,0.12549,231.11,231.06,1.6032]
[1733727202475,0.12549,231.09,231.06,1.6032]
[1733727203159,23.902374,231.09,231.06,1.6032]
[1733727203359,20.0,231.07,231.06,1.6032]
[1733727203559,20.12549,231.07,231.06,1.6032]
[1733727204193,20.0,231.07,231.06,1.6032]
[1733727204980,20.0,231.13,231.06,1.6032]
[1733727205167,6.65112723,231.17,231.06,1.6032]
[1733727205573,8.40653205,231.19,231.06,1.6032]
[1733727205769,1.75540482,231.19,231.06,1.6032]
[1733727206095,0.25098,231.19,231.06,1.6032]
[1733727206398,0.12549,231.16,231.06,1.6032]
[1733727206685,20.25098,231.16,231.06,1.6032]
[1733727206991,20.0,231.12,231.06,1.6032]
[1733727207794,24.027864,231.11,231.06,1.6032]
[1733727209301,0.12549,231.14,231.06,1.6032]
[1733727209595,20.0,231.12,231.06,1.6032]
[1733727209962,0.12549,231.14,231.06,1.6032]
[1733727210476,0.25098,231.15,231.06,1.6032]
[1733727210890,24.027864,231.15,231.06,1.6032]
[1733727211203,20.0,231.12,231.06,1.6032]
[1733727214594,0.12549,231.16,231.06,1.6032]
[1733727214777,23.902374,231.16,231.06,1.6032]
[1733727215180,20.0,231.13,231.06,1.6032]
[1733727215503,23.902374,231.16,231.06,1.6032]
[1733727216212,0.12549,231.12,231.06,1.6032]
[1733727218301,23.902374,231.12,231.06,1.6032]
[1733727219908,20.0,231.09,231.06,1.6032]
[1733727221811,23.902374,231.08,231.01,6.1269]
[1733727223648,20.0,231.05,231.0,1.5502]
[1733727223792,0.12549,231.04,231.0,1.5502]
[1733727224226,0.12549,230.9,230.8,27.01951028]
[1733727224425,0.25098,230.83,230.56,5.0]
[1733727224590,0.12549,230.8,230.63,6.2745]
[1733727224783,3.53943247,230.79,230.63,6.2745]
[1733727224986,0.12549,230.77,230.63,6.2745]
[1733727225229,5.05242825,230.78,230.63,6.2745]
[1733727225230,0.25098,230.75,230.63,6.2745]
[1733727225394,0.12549,230.73,230.63,6.2745]
[1733727225792,0.64974496,230.72,230.63,6.2745]
[1733727225992,23.776884,230.81,230.63,6.2745]
[1733727225993,0.12549,230.77,230.63,6.2745]
[1733727226292,0.12549,230.75,230.63,6.2745]
[1733727227017,0.64974496,230.74,230.63,6.2745]
[1733727228016,20.0,230.78,230.63,6.2745]
[1733727228017,0.90072496,230.77,230.63,6.2745]
[1733727229245,0.77523496,230.77,230.63,19.81713333]
[1733727229419,0.77523496,230.77,230.66,1.5737]
[1733727230016,0.64974496,230.77,230.66,1.5737]
[1733727230343,23.902374,230.84,230.66,1.5737]
[1733727230516,0.25098,230.82,230.66,1.5737]
[1733727230719,0.12549,230.8,230.66,1.5737]
[1733727231030,0.64974496,230.79,230.66,1.5737]
[1733727232039,0.77523496,230.8,230.66,1.5737]
[1733727233710,20.0,230.79,230.66,1.5737]
[1733727233937,0.64974496,230.78,230.67,13.54263333]
[1733727234142,0.64974496,230.78,230.68,23.776884]
[1733727234506,0.64974496,230.8,230.68,23.776884]
[1733727237063,0.64974496,230.8,230.67,24.027864]
[1733727238067,0.64974496,230.8,230.67,23.902374]
[1733727238732,0.64974496,230.8,230.67,23.776884]
[1733727238934,0.12549,230.79,230.67,23.776884]
[1733727239170,0.64974496,230.78,230.67,23.776884]
[1733727239667,0.12549,230.77,230.66,1.5737]
[1733727239968,0.64974496,230.78,230.66,1.5737]
[1733727240130,20.0,230.81,230.66,1.5737]
[1733727240131,0.77523496,230.8,230.66,1.5737]
[1733727240962,0.77523496,230.8,230.67,23.776884]
[1733727241180,0.77523496,230.8,230.6,0.65013422]
[1733727241181,0.25098,230.79,230.6,0.65013422]
[1733727241371,0.25098,230.75,230.57,1.6449]
[1733727241540,0.64974496,230.74,230.57,1.6449]
[1733727241741,0.12549,230.73,230.58,0.12549]
[1733727242073,0.25098,230.75,230.57,1.6449]
[1733727242074,0.64974496,230.72,230.57,1.6449]
[1733727242365,0.64974496,230.72,230.57,15.18753333]
[1733727243075,0.12549,230.73,230.57,15.18753333]
[1733727243274,0.25098,230.75,230.58,0.25098]
[1733727243275,0.64974496,230.72,230.58,0.25098]
[1733727243874,0.64974496,230.72,230.58,24.027864]
[1733727244267,0.64974496,230.74,230.58,24.027864]
[1733727244444,0.12549,230.73,230.58,24.027864]
[1733727244650,0.64974496,230.74,230.58,24.027864]
[1733727244844,0.64974496,230.74,230.58,37.57049733]
[1733727245185,0.64974496,230.74,230.61,23.776884]
[1733727245347,0.90072496,230.78,230.62,0.12549]
[1733727245547,0.77523496,230.78,230.62,0.12549]
[1733727246223,0.64974496,230.78,230.64,33.54263333]
[1733727246487,0.25098,230.81,230.65,23.776884]
[1733727246771,0.64974496,230.8,230.65,23.776884]
[1733727247275,0.64974496,230.8,230.66,0.12549]
[1733727247442,0.64974496,230.8,230.67,23.776884]
[1733727247651,1.02621496,230.83,230.67,23.776884]
[1733727247960,1.02621496,230.83,230.65,24.027864]
[1733727248181,1.02621496,230.83,230.65,37.57049733]
[1733727248548,0.12549,230.8,230.66,13.54263333]
[1733727248854,0.77523496,230.8,230.67,23.776884]
[1733727249582,0.77523496,230.8,230.65,37.57049733]
[1733727249780,0.77523496,230.8,230.66,23.776884]
[1733727250006,0.25098,230.83,230.66,23.776884]
[1733727250007,0.64974496,230.83,230.67,13.79361333]
[1733727250203,10.01315323,230.89,230.71,0.12549]
[1733727250204,0.64974496,230.88,230.71,0.12549]
[1733727250420,0.64974496,230.88,230.72,37.44500733]
[1733727250570,0.64974496,230.88,230.73,13.54263333]
[1733727250883,0.64974496,230.88,230.73,23.776884]
[1733727251386,0.12549,230.88,230.73,23.776884]
[1733727251581,0.12549,230.86,230.73,23.776884]
[1733727251784,0.77523496,230.86,230.72,23.902374]
[1733727251993,0.77523496,230.86,230.71,0.12549]
[1733727252191,0.77523496,230.86,230.71,13.66812333]
[1733727252382,0.77523496,230.86,230.72,23.776884]
[1733727256222,0.77523496,230.86,230.72,37.31951733]
[1733727256396,0.77523496,230.86,230.71,0.12549]
[1733727257316,0.77523496,230.86,230.71,13.66812333]
[1733727257526,0.77523496,230.86,230.72,23.776884]
[1733727257923,0.64974496,230.86,230.73,13.79361333]
[1733727258125,0.64974496,230.86,230.74,37.44500733]
[1733727258429,0.64974496,230.86,230.74,23.902374]
[1733727258636,0.64974496,230.86,230.73,0.25098]
[1733727259299,0.64974496,230.86,230.74,23.776884]
[1733727260906,0.64974496,230.86,230.74,37.31951733]
[1733727261412,0.64974496,230.86,230.75,23.776884]
[1733727264530,0.64974496,230.86,230.73,0.12549]
[1733727264826,0.64974496,230.86,230.74,20.0]
[1733727265032,0.64974496,230.86,230.72,23.776884]
[1733727265241,0.64974496,230.86,230.75,20.0]
[1733727268633,0.64974496,230.86,230.76,23.776884]
[1733727274758,0.64974496,230.86,230.76,32.43316211]
[1733727275131,0.64974496,230.86,230.77,8.65627811]
[1733727275322,0.64974496,230.86,230.78,23.776884]
[1733727275956,0.64974496,230.86,230.77,23.776884]
[1733727276622,0.64974496,230.86,230.79,8.65627811]
[1733727276827,0.64974496,230.89,230.81,23.776884]
[1733727277258,8.35228,230.97,230.81,23.776884]
[1733727277259,0.64974496,230.93,230.81,23.776884]
[1733727277630,0.64974496,230.93,230.81,32.43316211]
[1733727278249,0.77523496,230.96,230.81,32.43316211]
[1733727278453,0.77523496,230.96,230.83,23.776884]
[1733727278454,0.64974496,230.96,230.83,23.776884]
[1733727278650,0.64974496,230.96,230.85,23.776884]
[1733727279043,0.64974496,230.96,230.85,32.43316211]
[1733727279567,0.64974496,230.96,230.87,23.776884]
[1733727280132,0.64974496,230.96,230.86,23.776884]
[1733727280375,0.64974496,230.96,230.85,24.027864]
[1733727280664,0.64974496,230.96,230.85,23.776884]
[1733727280870,0.12549,230.95,230.8,23.776884]
[1733727281159,0.64974496,230.94,230.8,32.43316211]
[1733727281361,20.64974496,230.94,230.81,0.25098]
[1733727281565,20.64974496,230.94,230.81,8.90725811]
[1733727281860,20.64974496,230.94,230.83,23.776884]
[1733727282162,20.64974496,230.94,230.83,32.43316211]
[1733727282364,20.64974496,230.94,230.83,23.776884]
[1733727283170,20.64974496,230.94,230.83,32.43316211]
[1733727285562,0.64974496,230.94,230.85,23.776884]
[1733727285777,0.64974496,230.96,230.85,32.43316211]
[1733727286683,0.64974496,230.96,230.85,23.776884]
[1733727286977,0.64974496,230.96,230.85,32.43316211]
[1733727287167,0.64974496,230.96,230.85,23.776884]
[1733727287372,0.64974496,230.96,230.84,24.027864]
[1733727287606,0.64974496,230.96,230.84,0.25098]
[1733727287760,0.64974496,230.96,230.82,32.43316211]
[1733727287962,0.64974496,230.96,230.82,0.25098]
[1733727288154,20.0,230.94,230.8,32.43316211]
[1733727288366,0.64974496,230.93,230.8,32.43316211]
[1733727289785,0.64974496,230.93,230.8,23.776884]
[1733727290295,0.64974496,230.93,230.79,23.776884]
[1733727290788,0.12549,230.92,230.78,23.776884]
[1733727290987,0.64974496,230.91,230.78,23.776884]
[1733727291285,0.64974496,230.91,230.75,8.65627811]
[1733727291286,0.12549,230.9,230.75,8.65627811]
[1733727291521,0.64974496,230.89,230.74,8.65627811]
[1733727291730,1.47,230.88,230.75,0.25098]
[1733727291893,0.64974496,230.87,230.75,0.12549]
[1733727292403,0.64974496,230.87,230.75,8.65627811]
[1733727293027,0.64974496,230.87,230.76,23.776884]
[1733727294931,1.47,230.88,230.79,23.776884]
[1733727295119,1.47,230.88,230.79,32.43316211]
[1733727296503,0.64974496,230.93,230.81,23.776884]
[1733727297638,0.64974496,230.93,230.81,32.43316211]
[1733727298701,0.64974496,230.93,230.83,8.65627811]
[1733727299452,1.47,230.94,230.84,32.43316211]
[1733727299638,1.47,230.94,230.85,8.65627811]
[1733727299839,1.47,230.94,230.86,23.776884]
[1733727302927,1.47,230.94,230.86,32.43316211]
[1733727304240,1.47,230.94,230.86,23.776884]
[1733727307895,0.64974496,230.96,230.88,8.65627811]
[1733727308098,2.42048487,230.99,230.89,8.65627811]
[1733727308099,0.64974496,230.98,230.89,8.65627811]
[1733727308279,0.64974496,230.99,230.9,8.65627811]
[1733727308701,2.11974496,231.0,230.91,32.43316211]
[1733727309388,2.11974496,231.0,230.91,23.776884]
[1733727310800,2.11974496,231.0,230.91,32.43316211]
[1733727313885,2.11974496,231.0,230.91,23.776884]
[1733727314292,2.11974496,231.0,230.9,23.776884]
[1733727314919,2.11974496,231.0,230.89,8.65627811]
[1733727314920,2.11974496,231.0,230.89,24.027864]
[1733727315220,20.12549,230.99,230.84,0.64947456]
[1733727315381,0.64974496,230.98,230.83,10.24857811]
[1733727315581,20.0,230.97,230.84,8.65627811]
[1733727315881,0.64974496,230.96,230.84,8.65627811]
[1733727316298,0.64974496,230.96,230.8,0.64960666]
[1733727316512,0.64974496,230.96,230.82,8.65627811]
[1733727316830,0.64974496,230.96,230.85,8.65627811]
[1733727318427,0.64974496,230.96,230.86,23.776884]
[1733727319929,0.64974496,230.96,230.86,32.43316211]
[1733727320539,0.64974496,230.96,230.86,23.776884]
[1733727321131,0.64974496,230.96,230.85,23.776884]
[1733727321556,0.12549,230.95,230.85,32.43316211]
[1733727321755,0.12549,230.95,230.85,23.776884]
[1733727322734,0.12549,230.95,230.82,20.0]
[1733727322735,0.25098,230.95,230.82,20.0]
[1733727322934,0.25098,230.95,230.82,28.65627811]
[1733727323239,0.64974496,230.94,230.82,28.65627811]
[1733727323439,0.64974496,230.94,230.81,8.65627811]
[1733727323640,0.64974496,230.94,230.81,0.12549]
[1733727323862,0.64974496,230.94,230.78,0.64971561]
[1733727324158,6.38509,230.93,230.8,8.65627811]
[1733727324362,0.64974496,230.92,230.8,8.65627811]
[1733727324952,0.12549,230.91,230.8,8.65627811]
[1733727325131,0.64974496,230.92,230.81,0.12549]
[1733727325334,0.64974496,230.92,230.83,32.43316211]
[1733727325559,6.2596,230.93,230.85,8.65627811]
[1733727325936,6.2596,230.93,230.86,23.776884]
[1733727326135,0.12549,230.95,230.86,23.776884]
[1733727326349,0.12549,230.95,230.85,23.776884]
[1733727326830,0.12549,230.95,230.86,23.776884]
[1733727328763,0.64974496,230.96,230.86,32.43316211]
[1733727328963,0.64974496,230.97,230.86,32.43316211]
[1733727329355,0.64974496,230.97,230.86,23.776884]
[1733727331677,0.12549,230.96,230.86,23.776884]
[1733727333096,0.64974496,230.97,230.86,32.43316211]
[1733727333474,0.64974496,230.97,230.86,23.776884]
[1733727333877,0.64974496,230.97,230.85,20.0]
[1733727338580,0.64974496,230.97,230.83,23.776884]
[1733727338581,0.12549,230.94,230.83,23.776884]
[1733727338922,0.77523496,230.94,230.81,23.776884]
[1733727339609,0.77523496,230.94,230.78,23.776884]
[1733727339922,0.12549,230.91,230.79,8.65627811]
[1733727340209,0.77523496,230.91,230.79,8.65627811]
[1733727340715,0.77523496,230.91,230.81,8.65627811]
[1733727341212,0.77523496,230.91,230.82,8.65627811]
[1733727343580,0.77523496,230.91,230.81,32.43316211]
[1733727344081,0.77523496,230.91,230.82,8.65627811]
[1733727344307,0.77523496,230.91,230.81,32.43316211]
[1733727344588,0.77523496,230.91,230.81,23.776884]
[1733727344809,0.77523496,230.91,230.81,32.43316211]
[1733727345202,0.77523496,230.91,230.81,23.776884]
[1733727346080,0.77523496,230.91,230.82,8.65627811]
[1733727346280,0.64974496,230.91,230.82,8.65627811]
[1733727346713,1.47,230.92,230.82,8.65627811]
[1733727347079,0.64974496,230.91,230.82,8.65627811]
[1733727347285,1.47,230.92,230.84,8.65627811]
[1733727348184,1.47,230.92,230.84,23.776884]
[1733727348388,1.47,230.92,230.83,23.776884]
[1733727348389,0.64974496,230.91,230.83,23.776884]
[1733727348592,0.64974496,230.91,230.8,8.65627811]
[1733727348911,0.64974496,230.91,230.81,23.776884]
[1733727350428,0.64974496,230.91,230.82,8.65627811]
[1733727350914,1.47,230.92,230.84,8.65627811]
[1733727351126,1.47,230.92,230.83,23.776884]
[1733727351286,1.47,230.92,230.85,23.776884]
[1733727353034,0.64974496,230.97,230.86,8.65627811]
[1733727353230,0.12549,230.96,230.86,8.65627811]
[1733727353730,0.64974496,230.97,230.86,8.65627811]
[1733727354176,0.64974496,230.97,230.87,8.65627811]
[1733727356552,7.6062,230.98,230.89,8.65627811]
[1733727358257,7.6062,230.98,230.9,8.65627811]
[1733727358577,1.47,230.98,230.9,8.65627811]
[1733727358959,0.12549,230.97,230.89,0.64947707]
[1733727359165,0.12549,230.97,230.83,5.0]
[1733727359166,1.47,230.98,230.87,8.65627811]
[1733727359490,1.47,230.98,230.88,9.43126402]
[1733727359986,1.47,230.98,230.89,8.65627811]
[1733727360185,1.47,230.98,230.9,8.65627811]
[1733727360562,1.47,230.98,230.88,0.77498591]
[1733727360563,1.47,230.98,230.89,32.43316211]
[1733727361156,1.47,230.98,230.88,8.78176811]
[1733727361377,1.47,230.98,230.89,23.776884]
[1733727361656,1.47,230.98,230.88,0.12549]
[1733727362162,0.64974496,230.97,230.88,0.12549]
[1733727363483,1.47,230.98,230.89,23.776884]
[1733727364302,1.47,230.98,230.89,8.65627811]
[1733727364664,1.47,230.98,230.9,8.65627811]
[1733727364903,1.47,230.98,230.91,23.776884]
[1733727366476,0.64974496,231.02,230.91,23.776884]
[1733727367567,0.12549,231.01,230.89,8.65627811]
[1733727368504,0.12549,231.01,230.88,32.55865211]
[1733727369372,20.0,231.0,230.88,23.902374]
[1733727369577,0.64974496,230.99,230.88,23.902374]
[1733727369776,0.12549,230.98,230.83,0.64951398]
[1733727370086,0.12549,230.98,230.86,8.65627811]
[1733727370276,0.12549,230.98,230.87,23.776884]
[1733727371704,0.12549,230.98,230.87,32.43316211]
[1733727371905,0.64974496,230.99,230.88,9.30581381]
[1733727372201,0.64974496,230.99,230.89,8.65627811]
[1733727373799,0.64974496,230.99,230.88,8.65627811]
[1733727374798,0.64974496,230.99,230.87,32.43316211]
[1733727376881,0.64974496,230.99,230.88,0.64949902]
[1733727378003,0.64974496,230.99,230.88,9.30577713]
[1733727378511,0.64974496,230.99,230.89,23.902374]
[1733727381187,20.0,231.0,230.89,32.55865211]
[1733727381808,20.0,231.0,230.9,8.65627811]
[1733727382003,20.0,231.0,230.91,23.776884]